bitfinex/quotes_SOLUSD_20250917
["timestamp","ask_amount","ask_price","bid_price","bid_amount"]
[1758073195972,0.06,236.47,236.46,0.68]
[1758073196875,0.06,236.47,236.44,37.42933177]
[1758073197878,0.06,236.47,236.45,0.68]
[1758073199357,1.36029586,236.47,236.46,32.52]
[1758073200050,2.06029586,236.47,236.46,32.52]
[1758073200246,2.06029586,236.47,236.43,0.68]
[1758073200450,1.30029586,236.44,236.4,0.03]
[1758073200673,1.30029586,236.41,236.4,0.03]
[1758073200878,1.30029586,236.41,236.4,17.61]
[1758073201460,1.30029586,236.41,236.4,16.93]
[1758073202151,4.92939591,236.45,236.4,17.61]
[1758073202354,1.30029586,236.41,236.4,16.93]
[1758073202669,2.00029586,236.41,236.4,0.03]
[1758073202861,2.00029586,236.41,236.4,32.55]
[1758073203181,1.30029586,236.41,236.4,32.55]
[1758073203879,1.30029586,236.41,236.4,33.23]
[1758073204077,1.30029586,236.41,236.4,32.55]
[1758073204381,2.00029586,236.41,236.4,32.55]
[1758073204955,1.30029586,236.41,236.4,32.55]
[1758073206893,1.30029586,236.41,236.4,33.23]
[1758073207188,31.19672704,236.65,236.4,33.23]
[1758073207189,0.06,236.47,236.4,37.46011844]
[1758073207377,1.30029586,236.46,236.41,0.68]
[1758073208164,0.06,236.47,236.42,13.59559401]
[1758073208679,0.06,236.47,236.44,4.2294028]
[1758073208877,0.06,236.47,236.45,32.52]
[1758073209078,0.06,236.47,236.45,33.2]
[1758073209665,0.06,236.47,236.45,32.52]
[1758073209866,0.06,236.47,236.45,33.2]
[1758073211286,0.06,236.47,236.46,0.68]
[1758073212683,0.06,236.47,236.46,4.90904508]
[1758073213996,0.06,236.47,236.46,18.50463909]
[1758073215179,0.06,236.47,236.46,18.78896223]
[1758073217669,0.06,236.47,236.46,44.78896223]
[1758073219702,0.06,236.47,236.46,77.30896223]
[1758073220913,1e-08,236.47,236.46,77.30896223]
[1758073221398,0.06,236.5,236.49,39.59559401]
[1758073221601,0.06,236.5,236.49,74.12306387]
[1758073221776,0.06,236.5,236.49,74.80306387]
[1758073223122,0.06,236.5,236.49,79.03157247]
[1758073225005,0.06,236.5,236.49,148.67813658]
[1758073225208,0.06,236.5,236.49,148.25528572]
[1758073226008,0.06,236.5,236.49,160.80752902]
[1758073229006,0.06,236.52,236.5,0.28432314]
[1758073229208,0.06,236.52,236.51,35.1774341]
[1758073229390,0.06,236.53,236.52,0.28432314]
[1758073229588,0.06,236.53,236.52,0.95432314]
[1758073232213,0.06,236.53,236.52,5.1822954]
[1758073232614,0.06,236.53,236.52,4.5122954]
[1758073233795,0.74,236.53,236.52,17.82356627]
[1758073234004,0.06,236.53,236.52,50.32356627]
[1758073235590,0.06,236.53,236.52,17.82356627]
[1758073235791,0.06,236.53,236.52,50.32356627]
[1758073237017,0.06,236.53,236.52,53.44493478]
[1758073237400,0.06,236.53,236.52,53.72925792]
[1758073244120,0.06,236.53,236.52,53.75925792]
[1758073247407,0.2,236.55,236.53,13.87991715]
[1758073247723,0.2,236.55,236.53,14.54991715]
[1758073248028,0.06,236.56,236.55,26.28432314]
[1758073248229,1e-08,236.56,236.55,74.83123204]
[1758073248418,1e-08,236.57,236.56,13.59559401]
[1758073248731,1e-08,236.57,236.56,14.26559401]
[1758073250533,1e-08,236.57,236.56,18.7771745]
[1758073252328,0.06,236.61,236.59,39.87991715]
[1758073252511,0.06,236.61,236.59,74.81116057]
[1758073252723,0.06,236.61,236.6,14.54991715]
[1758073253432,0.06,236.61,236.6,13.87991715]
[1758073254761,0.06,236.61,236.6,18.10645983]
[1758073258033,0.06,236.61,236.6,50.58645983]
[1758073258949,0.06,236.61,236.6,18.10645983]
[1758073259147,0.77,236.61,236.6,50.30213669]
[1758073261236,0.77,236.61,236.56,36.56814338]
[1758073261433,0.71,236.6,236.57,50.30267267]
[1758073261753,0.71,236.59,236.57,50.30267267]
[1758073262937,0.77,236.61,236.57,62.89894062]
[1758073263166,0.06,236.61,236.59,13.59559401]
[1758073263348,0.06,236.61,236.6,32.48]
[1758073264567,0.06,236.61,236.6,36.70654268]
[1758073265144,0.77,236.61,236.6,32.48]
[1758073265449,0.77,236.61,236.6,36.70654268]
[1758073267272,0.06,236.61,236.6,36.70654268]
[1758073268954,0.77,236.61,236.6,36.70654268]
[1758073269571,0.06,236.61,236.6,46.78559401]
[1758073269752,1e-08,236.61,236.6,51.71911409]
[1758073270573,1e-08,236.61,236.6,53.74768538]
[1758073271256,1e-08,236.61,236.6,52.61503112]
[1758073271557,1e-08,236.61,236.6,53.32503112]
[1758073273565,1e-08,236.61,236.6,20.13503112]
[1758073273864,0.71000001,236.61,236.6,36.70654268]
[1758073275169,0.71000001,236.61,236.6,32.48]
[1758073277457,6.96493927,236.61,236.5,13.59559401]
[1758073277771,2.02857129,236.59,236.54,13.59559401]
[1758073277959,0.71,236.59,236.55,32.48]
[1758073278675,1e-08,236.61,236.56,14.30559401]
[1758073278970,1e-08,236.61,236.6,13.59559401]
[1758073279153,1e-08,236.61,236.6,46.09559401]
[1758073279852,1e-08,236.61,236.6,46.12559401]
[1758073280175,1e-08,236.61,236.6,50.35213669]
[1758073280359,1e-08,236.61,236.6,51.06213669]
[1758073280690,1e-08,236.61,236.6,50.35213669]
[1758073281353,0.71000001,236.61,236.6,32.53]
[1758073281964,1e-08,236.61,236.6,32.53]
[1758073282771,1e-08,236.61,236.6,36.75654268]
[1758073283082,0.71000001,236.61,236.6,36.75654268]
[1758073283581,1e-08,236.61,236.6,36.75654268]
[1758073289957,1e-08,236.61,236.6,37.43654268]
[1758073290478,1e-08,236.61,236.6,36.75654268]
[1758073291294,1e-08,236.61,236.6,0.03]
[1758073291462,0.71000001,236.61,236.6,32.51]
[1758073292487,1e-08,236.61,236.6,32.51]
[1758073294381,1e-08,236.61,236.6,36.73654268]
[1758073298473,1e-08,236.61,236.6,32.51]
[1758073299469,1e-08,236.61,236.6,36.73654268]
[1758073302681,1e-08,236.61,236.6,4.25654268]
[1758073302880,1e-08,236.61,236.6,36.73654268]
[1758073303097,1e-08,236.61,236.6,51.01213669]
[1758073305677,1e-08,236.61,236.6,18.53213669]
[1758073305877,1e-08,236.61,236.6,51.01213669]
[1758073306486,1e-08,236.61,236.6,13.62559401]
[1758073306695,2.0076518,236.61,236.6,32.51]
[1758073307688,1.2976518,236.61,236.6,32.51]
[1758073308685,1e-08,236.61,236.6,32.51]
[1758073309987,0.71000001,236.61,236.6,32.51]
[1758073310995,4.93636406,236.61,236.6,32.51]
[1758073311696,4.93636406,236.61,236.6,0.03]
[1758073311899,9.08146605,236.61,236.6,32.51]
[1758073312101,6.23401585,236.61,236.6,0.03]
[1758073319115,1.2976518,236.61,236.6,0.03]
[1758073320211,5.52401585,236.61,236.6,0.03]
[1758073320390,6.23401585,236.61,236.6,0.03]
[1758073320591,5.52401585,236.61,236.6,0.03]
[1758073321519,6.23401585,236.61,236.6,0.03]
[1758073324915,5.52401585,236.61,236.6,0.03]
[1758073326523,1e-08,236.61,236.6,0.72]
[1758073327714,1e-08,236.61,236.6,0.03]
[1758073329325,1e-08,236.61,236.6,0.72]
[1758073333125,1e-08,236.61,236.6,4.94654268]
[1758073336529,1e-08,236.61,236.6,0.03]
[1758073337207,1e-08,236.61,236.6,0.72]
[1758073337415,1e-08,236.61,236.6,4.94654268]
[1758073337615,1e-08,236.61,236.6,0.72]
[1758073338535,1e-08,236.61,236.6,0.03]
[1758073338823,2.0076518,236.61,236.6,0.03]
[1758073339025,1.2976518,236.61,236.6,0.03]
[1758073340124,1.2976518,236.61,236.6,0.72]
[1758073341223,1e-08,236.61,236.6,0.72]
[1758073342835,2.0076518,236.61,236.6,0.03]
[1758073343010,1.2976518,236.61,236.6,0.03]
[1758073343636,6.23401585,236.61,236.6,0.03]
[1758073344005,5.52401585,236.61,236.6,0.03]
[1758073344318,5.52401585,236.61,236.6,32.51]
[1758073345313,6.22401585,236.61,236.6,32.51]
[1758073346843,14.2608571,236.61,236.6,0.03]
[1758073347132,14.2608571,236.61,236.55,0.03]
[1758073347133,26.0,236.58,236.55,0.03]
[1758073347312,1.29765179,236.56,236.55,0.03]
[1758073347850,4.84388588,236.56,236.55,0.03]
[1758073348132,1.99765179,236.56,236.55,0.03]
[1758073348304,9.07114323,236.56,236.55,0.03]
[1758073348504,6.22490914,236.56,236.55,0.03]
[1758073348705,9.07114323,236.56,236.55,0.03]
[1758073348930,6.22490914,236.56,236.55,0.03]
[1758073349232,9.07114323,236.56,236.55,0.03]
[1758073349528,6.22490914,236.56,236.55,0.03]
[1758073349739,9.07114323,236.56,236.55,0.03]
[1758073349912,6.22490914,236.56,236.55,0.03]
[1758073350110,9.07114323,236.56,236.55,0.03]
[1758073350433,6.22490914,236.56,236.55,0.03]
[1758073350732,9.07114323,236.56,236.55,0.03]
[1758073350933,6.22490914,236.56,236.55,0.03]
[1758073351117,9.07114323,236.56,236.55,0.03]
[1758073351316,6.22490914,236.56,236.55,0.03]
[1758073351521,9.07114323,236.56,236.55,0.03]
[1758073351710,6.22490914,236.56,236.55,0.03]
[1758073351916,9.07114323,236.56,236.55,0.03]
[1758073352131,6.22490914,236.56,236.55,0.03]
[1758073352436,9.07114323,236.56,236.55,0.03]
[1758073352729,26.0,236.53,236.52,0.03]
[1758073352941,30.14388588,236.53,236.52,0.03]
[1758073353111,30.84388588,236.53,236.52,0.03]
[1758073355158,35.07167939,236.53,236.52,0.03]
[1758073359041,34.37167939,236.53,236.52,0.03]
[1758073359335,33.0740276,236.53,236.52,0.03]
[1758073359634,31.5254453,236.53,236.52,0.69]
[1758073359838,32.25767641,236.53,236.52,0.69]
[1758073360042,26.0,236.53,236.52,0.69]
[1758073360219,28.0298829,236.53,236.52,0.69]
[1758073363228,32.25767641,236.53,236.52,0.69]
[1758073363922,32.95767641,236.53,236.52,0.03]
[1758073364128,32.25767641,236.53,236.52,0.03]
[1758073364734,0.7,236.55,236.52,0.69]
[1758073364735,2.0298829,236.55,236.52,0.69]
[1758073365143,2.0298829,236.54,236.52,0.69]
[1758073367424,2.0298829,236.53,236.52,0.03]
[1758073368025,4.22752701,236.55,236.52,0.69]
[1758073368228,2.0298829,236.53,236.52,0.03]
[1758073368731,2.0298829,236.53,236.52,0.69]
[1758073369934,2.0298829,236.53,236.52,0.03]
[1758073370134,2.0298829,236.53,236.52,0.69]
[1758073372244,6.25767641,236.53,236.52,0.03]
[1758073373746,2.0298829,236.53,236.52,0.03]
[1758073374451,6.25767641,236.53,236.52,0.03]
[1758073380147,2.0298829,236.53,236.52,0.03]
[1758073380651,6.94767641,236.53,236.52,0.03]
[1758073380951,2.0298829,236.53,236.52,0.03]
[1758073381148,6.94767641,236.53,236.52,0.03]
[1758073381543,9.78511186,236.53,236.52,0.03]
[1758073382245,9.09511186,236.53,236.52,0.03]
[1758073382562,4.28751617,236.55,236.52,0.71]
[1758073382856,2.0298829,236.53,236.52,0.03]
[1758073383235,2.0298829,236.53,236.52,0.71]
[1758073388759,2.0298829,236.53,236.52,0.03]
[1758073389061,9.09666998,236.53,236.52,0.03]
[1758073389451,6.25767641,236.53,236.52,0.03]
[1758073389642,9.78666998,236.53,236.52,0.03]
[1758073390363,35.78666998,236.53,236.52,0.03]
[1758073390532,9.78666998,236.53,236.52,0.03]
[1758073390737,36.07099312,236.53,236.52,0.03]
[1758073390934,10.07099312,236.53,236.52,0.03]
[1758073391136,39.61778743,236.53,236.52,0.03]
[1758073391362,26.0,236.5,236.49,0.03]
[1758073391555,30.86887647,236.5,236.49,0.03]
[1758073392662,9.09720627,236.5,236.49,0.03]
[1758073393050,35.09720627,236.5,236.49,0.03]
[1758073395055,35.78720627,236.5,236.49,0.03]
[1758073395542,9.78720627,236.5,236.49,0.03]
[1758073397838,35.09720627,236.5,236.49,0.03]
[1758073398237,35.09720627,236.5,236.49,0.71]
[1758073398439,35.09720627,236.5,236.49,0.03]
[1758073401669,28.83899357,236.5,236.49,0.71]
[1758073401959,30.86887647,236.5,236.49,0.71]
[1758073402166,30.86887647,236.5,236.49,0.03]
[1758073404070,35.09720627,236.5,236.49,0.03]
[1758073404461,35.78720627,236.5,236.49,0.03]
[1758073404666,35.09720627,236.5,236.49,0.03]
[1758073405461,35.80720627,236.5,236.49,0.03]
[1758073406869,35.09720627,236.5,236.49,0.03]
[1758073417073,35.80720627,236.5,236.49,0.03]
[1758073418887,35.09720627,236.5,236.49,0.03]
[1758073419681,35.09720627,236.5,236.49,0.75]
[1758073419880,34.36687807,236.5,236.49,0.75]
[1758073425489,34.36687807,236.5,236.49,0.03]
[1758073426697,2.83899357,236.5,236.49,0.75]
[1758073426986,7.06732337,236.5,236.49,0.03]
[1758073427568,7.77732337,236.5,236.49,0.03]
[1758073433983,9.07687807,236.5,236.49,0.03]
[1758073434296,8.36687807,236.5,236.49,0.03]
[1758073441087,9.06687807,236.5,236.49,0.03]
[1758073441288,8.36687807,236.5,236.49,0.03]
[1758073445217,9.35120121,236.5,236.49,0.03]
[1758073445409,26.28432314,236.48,236.47,0.03]
[1758073445719,39.18719876,236.48,236.47,0.03]
[1758073445916,39.88719876,236.48,236.47,0.03]
[1758073446096,36.32109021,236.48,236.47,0.03]
[1758073446420,42.24408264,236.48,236.47,0.03]
[1758073447102,37.04586384,236.48,236.47,0.03]
[1758073447991,69.54586384,236.48,236.47,0.03]
[1758073449822,74.74408264,236.48,236.47,0.03]
[1758073450420,13.87991715,236.47,236.46,1e-08]
[1758073450606,27.96243456,236.47,236.46,1e-08]
[1758073450916,39.59559401,236.45,236.44,0.03]
[1758073451131,43.73414228,236.45,236.44,0.03]
[1758073451300,44.43414228,236.45,236.44,0.03]
[1758073451998,48.66336621,236.45,236.44,0.03]
[1758073453424,52.22049581,236.45,236.44,0.03]
[1758073453803,48.66336621,236.45,236.44,0.03]
[1758073455423,52.21823828,236.45,236.44,0.03]
[1758073455826,36.62308957,236.45,236.44,0.03]
[1758073456013,34.3677722,236.45,236.44,0.7]
[1758073456529,33.0682175,236.45,236.44,0.7]
[1758073456825,34.3677722,236.45,236.44,0.7]
[1758073457827,34.3677722,236.45,236.44,0.03]
[1758073458629,34.3677722,236.45,236.44,0.7]
[1758073461032,33.0682175,236.45,236.44,0.7]
[1758073461209,8.3677722,236.45,236.44,0.7]
[1758073461403,5.52877863,236.45,236.44,0.7]
[1758073461602,8.3677722,236.45,236.44,0.7]
[1758073464432,8.3677722,236.45,236.44,0.03]
[1758073464809,8.3677722,236.45,236.44,0.7]
[1758073466735,8.3677722,236.45,236.44,0.03]
[1758073467115,8.3677722,236.45,236.44,0.72]
[1758073468352,8.3677722,236.45,236.44,0.03]
[1758073469932,8.3677722,236.45,236.44,0.72]
[1758073470429,8.3677722,236.45,236.44,0.03]
[1758073471521,8.3677722,236.45,236.44,0.72]
[1758073476441,8.3677722,236.45,236.44,0.03]
[1758073476923,8.3677722,236.45,236.44,0.72]
[1758073479844,9.09951197,236.45,236.44,0.72]
[1758073480735,9.09951197,236.45,236.44,0.03]
[1758073480933,9.09951197,236.45,236.44,0.72]
[1758073486631,9.09951197,236.45,236.44,0.03]
[1758073489052,7.0682175,236.45,236.44,0.03]
[1758073489254,9.09951197,236.45,236.44,0.03]
[1758073500765,2.83899357,236.45,236.44,0.71]
[1758073501758,0.06,236.46,236.44,2.74129447]
[1758073502263,0.06,236.46,236.45,3.53101352]
[1758073503863,0.06,236.46,236.44,0.03]
[1758073503864,2.09129447,236.46,236.44,0.03]
[1758073504049,4.88220233,236.45,236.44,0.03]
[1758073504363,5.60220233,236.45,236.44,0.03]
[1758073505363,9.83142626,236.45,236.44,0.03]
[1758073512371,9.11142626,236.45,236.44,0.03]
[1758073512578,7.08013179,236.45,236.44,0.03]
[1758073512760,9.11142626,236.45,236.44,0.71]
[1758073516759,9.11142626,236.45,236.44,0.03]
[1758073516963,9.83142626,236.45,236.44,0.03]
[1758073517980,26.0,236.43,236.42,0.03]
[1758073518153,4.88220233,236.43,236.42,0.03]
[1758073518461,5.60220233,236.43,236.42,0.03]
[1758073518862,9.83178402,236.43,236.42,0.03]
[1758073520548,9.11178402,236.43,236.42,0.03]
[1758073522858,35.11178402,236.43,236.42,0.03]
[1758073533577,35.83178402,236.43,236.42,0.03]
[1758073535479,35.11178402,236.43,236.42,0.03]
[1758073535789,35.11178402,236.43,236.42,0.75]
[1758073537790,35.11178402,236.43,236.42,0.03]
[1758073537983,35.83178402,236.43,236.42,0.03]
[1758073538875,35.11178402,236.43,236.42,0.03]
[1758073539780,35.11178402,236.43,236.42,0.75]
[1758073540587,30.88220233,236.43,236.42,0.75]
[1758073540779,35.11178402,236.43,236.42,0.75]
[1758073540985,9.11178402,236.43,236.42,0.75]
[1758073541179,6.26087616,236.43,236.42,0.75]
[1758073541884,1.3000734,236.43,236.42,0.75]
[1758073543090,5.52965509,236.43,236.42,0.75]
[1758073545273,5.52965509,236.43,236.42,0.03]
[1758073545474,6.24965509,236.43,236.42,0.03]
[1758073545670,5.52965509,236.43,236.42,0.03]
[1758073545871,9.10056295,236.43,236.42,0.03]
[1758073546094,9.38488609,236.43,236.42,0.03]
[1758073548600,22.9804801,236.43,236.41,0.03]
[1758073548789,21.30910208,236.42,236.41,1e-08]
[1758073549291,22.02910208,236.42,236.41,1e-08]
[1758073549498,0.28432314,236.41,236.4,0.03]
[1758073549677,6.69083049,236.41,236.4,0.03]
[1758073549882,7.41083049,236.41,236.4,0.03]
[1758073550503,11.64077,236.41,236.4,0.03]
[1758073550890,10.92077,236.41,236.4,0.03]
[1758073551092,11.64077,236.41,236.4,0.03]
[1758073551302,10.92077,236.41,236.4,0.03]
[1758073551476,7.36517051,236.41,236.4,0.03]
[1758073552785,8.08517051,236.41,236.4,0.03]
[1758073554982,7.36517051,236.41,236.4,0.03]
[1758073555389,8.66524391,236.41,236.4,0.03]
[1758073558917,9.38524391,236.41,236.4,0.03]
[1758073559905,8.66524391,236.41,236.4,0.03]
[1758073560099,8.66524391,236.41,236.4,0.73]
[1758073560281,8.38092077,236.41,236.4,0.73]
[1758073560486,8.38092077,236.41,236.4,0.03]
[1758073562104,7.08084737,236.41,236.4,0.03]
[1758073562308,8.38092077,236.41,236.4,0.03]
[1758073562615,9.10092077,236.41,236.4,0.03]
[1758073564009,8.38092077,236.41,236.4,0.03]
[1758073564191,8.38092077,236.41,236.4,0.73]
[1758073564507,8.38092077,236.41,236.4,0.03]
[1758073564993,8.38092077,236.41,236.4,0.73]
[1758073565502,8.38092077,236.41,236.4,0.03]
[1758073567186,8.38092077,236.41,236.4,0.73]
[1758073568421,34.38092077,236.41,236.4,0.73]
[1758073569422,34.38092077,236.41,236.4,0.03]
[1758073571614,35.38524391,236.41,236.4,0.03]
[1758073572618,34.66524391,236.41,236.4,0.03]
[1758073573117,34.38092077,236.41,236.4,0.73]
[1758073573304,34.38092077,236.41,236.4,0.03]
[1758073574590,34.38092077,236.41,236.4,0.73]
[1758073575736,34.38092077,236.41,236.4,0.03]
[1758073578101,9.38524391,236.41,236.4,0.03]
[1758073580328,8.14517051,236.41,236.4,0.03]
[1758073580519,8.44092077,236.41,236.4,0.73]
[1758073580822,34.44092077,236.41,236.4,0.03]
[1758073581003,8.44092077,236.41,236.4,0.03]
[1758073583926,8.44092077,236.41,236.4,0.73]
[1758073584101,8.44092077,236.41,236.4,0.03]
[1758073584829,9.16092077,236.41,236.4,0.03]
[1758073585035,8.44092077,236.41,236.4,0.03]
[1758073585207,34.44092077,236.41,236.4,0.03]
[1758073585413,8.44092077,236.41,236.4,0.03]
[1758073586135,34.44092077,236.41,236.4,0.03]
[1758073586331,9.42524391,236.41,236.4,0.03]
[1758073586511,26.28432314,236.4,236.39,0.03]
[1758073586715,29.135231,236.4,236.39,0.03]
[1758073587215,28.85090786,236.4,236.39,0.7]
[1758073587621,26.0,236.4,236.39,0.7]
[1758073588133,30.23011844,236.4,236.39,0.7]
[1758073589033,30.23011844,236.4,236.39,0.03]
[1758073590144,31.21444158,236.4,236.39,0.03]
[1758073590840,33.35991463,236.4,236.38,0.03]
[1758073591136,4.14554645,236.39,236.38,0.03]
[1758073591925,8.37584383,236.39,236.38,0.03]
[1758073592723,9.08718047,236.39,236.38,0.03]
[1758073594754,9.37150361,236.39,236.38,0.03]
[1758073598225,5.81469392,236.39,236.38,0.03]
[1758073598420,5.81469392,236.39,236.38,0.7]
[1758073598421,4.29029738,236.39,236.38,0.7]
[1758073598742,5.59037078,236.39,236.38,0.7]
[1758073601058,5.59037078,236.39,236.38,0.03]
[1758073603134,31.59037078,236.39,236.38,0.7]
[1758073603848,32.32276296,236.39,236.38,0.7]
[1758073608053,32.32276296,236.39,236.38,0.03]
[1758073609230,32.32276296,236.39,236.38,0.7]
[1758073612338,32.32276296,236.39,236.38,0.03]
[1758073613353,32.32276296,236.39,236.38,0.7]
[1758073618243,1.20976494,236.42,236.39,13.59559401]
[1758073618447,0.06,236.44,236.43,13.87991715]
[1758073618655,0.06,236.45,236.44,0.28432314]
[1758073618969,0.06,236.45,236.44,52.52491727]
[1758073619264,0.06,236.45,236.44,54.20905601]
[1758073619466,1e-08,236.46,236.45,39.59559401]
[1758073619759,1e-08,236.47,236.46,23.3576507]
[1758073620333,1e-08,236.47,236.46,27.58669578]
[1758073620537,1e-08,236.47,236.46,31.31210391]
[1758073620844,1e-08,236.47,236.46,64.21210391]
[1758073621047,1e-08,236.47,236.46,62.17963833]
[1758073627161,1e-08,236.47,236.46,64.21210391]
[1758073627362,1e-08,236.47,236.46,66.24456949]
[1758073628537,1e-08,236.48,236.47,13.59559401]
[1758073628739,1e-08,236.49,236.47,18.36773493]
[1758073629349,1e-08,236.49,236.48,15.28846491]
[1758073631574,1e-08,236.49,236.48,21.5496179]
[1758073634966,1e-08,236.49,236.48,54.3296179]
[1758073641500,1e-08,236.49,236.48,21.5496179]
[1758073641788,1e-08,236.49,236.48,54.2896179]
[1758073645574,1e-08,236.49,236.48,54.2696179]
[1758073645999,1e-08,236.49,236.48,21.5496179]
[1758073646299,1e-08,236.49,236.48,54.2496179]
[1758073649491,1e-08,236.49,236.48,19.51715232]
[1758073649685,0.72000001,236.49,236.48,19.856747]
[1758073650004,0.72000001,236.49,236.48,52.536747]
[1758073651887,0.72000001,236.49,236.48,52.566747]
[1758073652285,1e-08,236.49,236.48,52.85107014]
[1758073652992,0.72000001,236.49,236.48,52.85107014]
[1758073653604,1e-08,236.49,236.48,52.85107014]
[1758073654707,0.72000001,236.49,236.48,52.85107014]
[1758073664217,1e-08,236.49,236.48,52.85107014]
[1758073664419,0.72000001,236.49,236.48,52.85107014]
[1758073665818,0.72000001,236.49,236.48,52.11683828]
[1758073666119,0.72000001,236.49,236.48,50.81860456]
[1758073666327,0.72000001,236.49,236.48,52.11683828]
[1758073668609,0.72000001,236.49,236.48,19.15251514]
[1758073668811,0.72000001,236.49,236.48,0.03]
[1758073669123,0.72000001,236.49,236.48,46.19559401]
[1758073669422,0.72000001,236.49,236.48,46.22559401]
[1758073670108,0.72000001,236.49,236.48,32.63]
[1758073670505,0.72000001,236.49,236.48,0.03]
[1758073670712,6.24674233,236.49,236.48,0.03]
[1758073671055,6.24674233,236.49,236.48,32.65]
[1758073672702,4.94850861,236.49,236.48,32.65]
[1758073672901,6.24674233,236.49,236.48,32.65]
[1758073673305,6.24674233,236.49,236.48,32.63]
[1758073677333,6.24674233,236.49,236.48,0.03]
[1758073681649,11.72400035,236.49,236.48,0.03]
[1758073681811,11.72400035,236.49,236.46,0.03]
[1758073681812,32.77549174,236.47,236.46,0.03]
[1758073682241,33.42549174,236.47,236.46,0.03]
[1758073683215,37.65435798,236.47,236.46,0.03]
[1758073683416,37.65435798,236.47,236.45,0.03]
[1758073683638,1.29823372,236.46,236.45,0.03]
[1758073684036,2.23255686,236.46,236.43,0.03]
[1758073684338,1.29823372,236.42,236.37,0.03]
[1758073684840,1.94823372,236.42,236.37,0.03]
[1758073685340,6.17799431,236.42,236.37,0.03]
[1758073685526,30.87976059,236.42,236.37,0.03]
[1758073685720,32.17799431,236.42,236.37,0.03]
[1758073689121,30.87976059,236.42,236.37,0.03]
[1758073689347,32.17799431,236.42,236.37,0.03]
[1758073696268,27.29823372,236.42,236.37,0.03]
[1758073696427,1.29823372,236.42,236.38,0.08]
[1758073696629,1.29823372,236.42,236.38,0.03]
[1758073696930,6.17799431,236.42,236.38,0.03]
[1758073697344,1.29823372,236.42,236.38,0.03]
[1758073699439,1.29823372,236.42,236.38,32.63]
[1758073700033,1.29823372,236.42,236.38,32.61]
[1758073700230,1.29823372,236.42,236.38,0.03]
[1758073700537,5.52799431,236.42,236.38,32.61]
[1758073700745,6.17799431,236.42,236.38,32.61]
[1758073701248,1.94823372,236.42,236.38,32.61]
[1758073701458,1.29823372,236.42,236.38,32.61]
[1758073701954,1.94823372,236.42,236.38,32.61]
[1758073703158,1.29823372,236.42,236.38,32.61]
[1758073703357,1.29823372,236.42,236.38,32.59]
[1758073703937,6.17799431,236.42,236.38,32.59]
[1758073704154,1.94823372,236.42,236.38,32.59]
[1758073705860,6.17799431,236.42,236.38,32.59]
[1758073706469,6.17799431,236.42,236.38,0.03]
[1758073706654,6.17799431,236.42,236.38,32.59]
[1758073707276,6.17799431,236.42,236.38,0.03]
[1758073708545,1.29823372,236.42,236.38,0.03]
[1758073709045,1.94823372,236.42,236.38,0.03]
[1758073710176,6.17799431,236.42,236.38,0.03]
[1758073715575,7.87258644,236.42,236.38,0.03]
[1758073718775,26.0,236.39,236.38,0.03]
[1758073719054,27.29823372,236.39,236.38,0.03]
[1758073719256,27.94823372,236.39,236.38,0.03]
[1758073719686,32.1785311,236.39,236.38,0.03]
[1758073727882,32.91257441,236.39,236.38,0.03]
[1758073738477,30.23029738,236.39,236.38,0.03]
[1758073738775,32.97257441,236.39,236.38,0.03]
[1758073741988,32.26257441,236.39,236.38,0.03]
[1758073743069,32.97257441,236.39,236.38,0.03]
[1758073748196,30.94029738,236.39,236.38,0.03]